[Event "*** Titled Tuesday Blitz"]
[Site "Chess.com"]
[Date "2020.05.19"]
[Round "6"]
[White "Kobalia"]
[Black "mbojan"]
[Result "1-0"]
[WhiteElo "2802"]
[BlackElo "2621"]
[TimeControl "180+1"]
[EndTime "13:10:42 PDT"]
[Termination "Kobalia won by checkmate"]

1. e4 {[%clk 0:03:00.9]} 1... c5 {[%clk 0:02:59.9]} 2. Nf3 {[%clk 0:03:00.4]}
2... Nc6 {[%clk 0:02:59.6]} 3. Bb5 {[%clk 0:02:59.6]} 3... g6 {[%clk 0:02:59.9]}
4. Bxc6 {[%clk 0:02:59.5]} 4... dxc6 {[%clk 0:03:00.8]} 5. O-O {[%clk
0:02:59.5]} 5... Bg7 {[%clk 0:03:01.2]} 6. d3 {[%clk 0:02:59.8]} 6... Nf6 {[%clk
0:03:01]} 7. a4 {[%clk 0:02:55.7]} 7... Bg4 {[%clk 0:03:00.6]} 8. Nbd2 {[%clk
0:02:54]} 8... O-O {[%clk 0:03:00.2]} 9. h3 {[%clk 0:02:53.7]} 9... Bxf3 {[%clk
0:03:00.1]} 10. Nxf3 {[%clk 0:02:53.9]} 10... Nd7 {[%clk 0:03:00.2]} 11. a5
{[%clk 0:02:51.9]} 11... e5 {[%clk 0:02:59.7]} 12. c3 {[%clk 0:02:48.6]} 12...
Qe7 {[%clk 0:02:59.6]} 13. Qb3 {[%clk 0:02:47.1]} 13... b6 {[%clk 0:02:57.4]}
14. Be3 {[%clk 0:02:42.3]} 14... Rfd8 {[%clk 0:02:55.1]} 15. Ra2 {[%clk
0:02:40.6]} 15... b5 {[%clk 0:02:52.2]} 16. a6 {[%clk 0:02:32.4]} 16... Nf8
{[%clk 0:02:49.4]} 17. Qa3 {[%clk 0:02:05.4]} 17... Ne6 {[%clk 0:02:47.1]} 18.
Rd1 {[%clk 0:02:04.5]} 18... f6 {[%clk 0:02:43.5]} 19. d4 {[%clk 0:01:59.9]}
19... Bf8 {[%clk 0:02:15.2]} 20. Raa1 {[%clk 0:01:34.8]} 20... cxd4 {[%clk
0:02:14.6]} 21. Qxe7 {[%clk 0:01:34.3]} 21... Bxe7 {[%clk 0:02:14.4]} 22. cxd4
{[%clk 0:01:34.7]} 22... exd4 {[%clk 0:02:14.6]} 23. Nxd4 {[%clk 0:01:32.5]}
23... Nxd4 {[%clk 0:02:15]} 24. Bxd4 {[%clk 0:01:29.9]} 24... c5 {[%clk
0:02:13]} 25. Be3 {[%clk 0:01:30]} 25... Kf7 {[%clk 0:02:13]} 26. Rdc1 {[%clk
0:01:25.1]} 26... Rdc8 {[%clk 0:02:00.5]} 27. Ra5 {[%clk 0:01:23.9]} 27... Rab8
{[%clk 0:02:00.6]} 28. b4 {[%clk 0:01:21.8]} 28... Rc6 {[%clk 0:00:42.7]} 29.
bxc5 {[%clk 0:01:09]} 29... b4 {[%clk 0:00:41.2]} 30. Rb1 {[%clk 0:01:07.3]}
30... b3 {[%clk 0:00:40.5]} 31. Ra3 {[%clk 0:00:51.7]} 31... Bxc5 {[%clk
0:00:37.5]} 32. Bxc5 {[%clk 0:00:51.7]} 32... Rxc5 {[%clk 0:00:27.7]} 33. Raxb3
{[%clk 0:00:52]} 33... Rxb3 {[%clk 0:00:10.3]} 34. Rxb3 {[%clk 0:00:51.1]} 34...
Ra5 {[%clk 0:00:10.6]} 35. Rb7+ {[%clk 0:00:50.7]} 35... Ke6 {[%clk 0:00:11]}
36. Rxa7 {[%clk 0:00:50.8]} 36... h5 {[%clk 0:00:10.7]} 37. Ra8 {[%clk
0:00:50.1]} 37... Ke5 {[%clk 0:00:10.2]} 38. a7 {[%clk 0:00:27.3]} 38... Kf4
{[%clk 0:00:10.2]} 39. Rf8 {[%clk 0:00:23.5]} 39... Ra1+ {[%clk 0:00:06.5]} 40.
Kh2 {[%clk 0:00:22.7]} 40... Rxa7 {[%clk 0:00:07.4]} 41. Rxf6+ {[%clk
0:00:22.2]} 41... Kg5 {[%clk 0:00:07.9]} 42. Rf8 {[%clk 0:00:22.2]} 42... Ra4
{[%clk 0:00:07.7]} 43. f4+ {[%clk 0:00:14.5]} 43... Kh6 {[%clk 0:00:07.5]} 44.
e5 {[%clk 0:00:13.8]} 44... Kg7 {[%clk 0:00:07.6]} 45. Rf6 {[%clk 0:00:13.9]}
45... Ra2 {[%clk 0:00:07]} 46. h4 {[%clk 0:00:13.5]} 46... Ra4 {[%clk
0:00:06.9]} 47. Kg3 {[%clk 0:00:13.3]} 47... Ra3+ {[%clk 0:00:07.3]} 48. Kf2
{[%clk 0:00:13.5]} 48... Ra4 {[%clk 0:00:07.7]} 49. Kf3 {[%clk 0:00:12.8]} 49...
Ra3+ {[%clk 0:00:08.2]} 50. Ke4 {[%clk 0:00:12.8]} 50... Rg3 {[%clk 0:00:08.4]}
51. Rd6 {[%clk 0:00:09.5]} 51... Rxg2 {[%clk 0:00:08.6]} 52. Rd7+ {[%clk
0:00:09.7]} 52... Kf8 {[%clk 0:00:06.7]} 53. e6 {[%clk 0:00:07.3]} 53... Re2+
{[%clk 0:00:04.2]} 54. Kd5 {[%clk 0:00:07.4]} 54... Re1 {[%clk 0:00:02.9]} 55.
Ra7 {[%clk 0:00:06.9]} 55... Rh1 {[%clk 0:00:02.1]} 56. Ke5 {[%clk 0:00:06.6]}
56... Rxh4 {[%clk 0:00:01.3]} 57. f5 {[%clk 0:00:07]} 57... gxf5 {[%clk
0:00:01.4]} 58. Kf6 {[%clk 0:00:07.3]} 58... Kg8 {[%clk 0:00:02.3]} 59. Ra8+
{[%clk 0:00:07.2]} 59... Kh7 {[%clk 0:00:03.2]} 60. e7 {[%clk 0:00:07.7]} 60...
Re4 {[%clk 0:00:04]} 61. e8=Q {[%clk 0:00:08.2]} 61... Rxe8 {[%clk 0:00:04.9]}
62. Rxe8 {[%clk 0:00:08.1]} 62... f4 {[%clk 0:00:05.8]} 63. Kg5 {[%clk
0:00:07.8]} 63... f3 {[%clk 0:00:06.7]} 64. Rf8 {[%clk 0:00:08.1]} 64... Kg7
{[%clk 0:00:06.9]} 65. Rxf3 {[%clk 0:00:08.3]} 65... h4 {[%clk 0:00:07.8]} 66.
Rh3 {[%clk 0:00:08.6]} 66... Kh7 {[%clk 0:00:07.8]} 67. Rxh4+ {[%clk 0:00:09.5]}
67... Kg7 {[%clk 0:00:08.7]} 68. Rf4 {[%clk 0:00:08.4]} 68... Kg8 {[%clk
0:00:08.6]} 69. Rf6 {[%clk 0:00:08.3]} 69... Kh8 {[%clk 0:00:09.5]} 70. Kg6
{[%clk 0:00:08]} 70... Kg8 {[%clk 0:00:10.4]} 71. Rf5 {[%clk 0:00:08.3]} 71...
Kh8 {[%clk 0:00:11.3]} 72. Rf8# {[%clk 0:00:08.7]} 1-0

[Event "*** Titled Tuesday Blitz"]
[Site "Chess.com"]
[Date "2020.05.19"]
[Round "6"]
[White "atwalcb"]
[Black "Tolya2"]
[Result "1-0"]
[WhiteElo "2356"]
[BlackElo "2455"]
[TimeControl "180+1"]
[EndTime "13:10:42 PDT"]
[Termination "atwalcb won on time"]

1. d4 {[%clk 0:03:00.9]} 1... d5 {[%clk 0:02:57.4]} 2. Nf3 {[%clk 0:03:00.5]}
2... Nf6 {[%clk 0:02:56.4]} 3. c4 {[%clk 0:03:00.2]} 3... dxc4 {[%clk
0:02:56.5]} 4. g3 {[%clk 0:02:56.9]} 4... b5 {[%clk 0:02:55.7]} 5. a4 {[%clk
0:02:52.4]} 5... c6 {[%clk 0:02:54]} 6. Bg2 {[%clk 0:02:50.5]} 6... Bb7 {[%clk
0:02:53.3]} 7. Ne5 {[%clk 0:02:41.1]} 7... a6 {[%clk 0:02:53.1]} 8. O-O {[%clk
0:02:36.6]} 8... e6 {[%clk 0:02:53]} 9. b3 {[%clk 0:02:32.9]} 9... cxb3 {[%clk
0:02:51.3]} 10. Qxb3 {[%clk 0:02:23.8]} 10... Be7 {[%clk 0:02:44.8]} 11. axb5
{[%clk 0:02:16.9]} 11... axb5 {[%clk 0:02:42.8]} 12. Rxa8 {[%clk 0:02:15.7]}
12... Bxa8 {[%clk 0:02:42.8]} 13. Rd1 {[%clk 0:02:11.2]} 13... O-O {[%clk
0:02:39.8]} 14. Na3 {[%clk 0:02:06.7]} 14... Qb6 {[%clk 0:02:38.2]} 15. Be3
{[%clk 0:01:59.7]} 15... Nd5 {[%clk 0:02:35.5]} 16. Bc1 {[%clk 0:01:45.4]} 16...
Rd8 {[%clk 0:02:29.2]} 17. Nc2 {[%clk 0:01:43.6]} 17... Nd7 {[%clk 0:02:25.7]}
18. Nd3 {[%clk 0:01:33.8]} 18... c5 {[%clk 0:02:16.1]} 19. dxc5 {[%clk
0:01:12.3]} 19... Nxc5 {[%clk 0:02:14.6]} 20. Nxc5 {[%clk 0:01:10.7]} 20... Bxc5
{[%clk 0:02:14.5]} 21. e3 {[%clk 0:01:07.1]} 21... Rc8 {[%clk 0:02:07.6]} 22.
Bb2 {[%clk 0:01:03.3]} 22... Bf8 {[%clk 0:02:01.1]} 23. Nd4 {[%clk 0:00:58.4]}
23... b4 {[%clk 0:01:58.6]} 24. Rc1 {[%clk 0:00:53.2]} 24... Rxc1+ {[%clk
0:01:56.6]} 25. Bxc1 {[%clk 0:00:54.1]} 25... h6 {[%clk 0:01:49.3]} 26. Bb2
{[%clk 0:00:53]} 26... Qc7 {[%clk 0:01:38.1]} 27. Qa4 {[%clk 0:00:50]} 27... Bb7
{[%clk 0:01:31.8]} 28. h4 {[%clk 0:00:44.6]} 28... Nc3 {[%clk 0:01:27.6]} 29.
Qe8 {[%clk 0:00:40.1]} 29... Bxg2 {[%clk 0:01:25]} 30. Kxg2 {[%clk 0:00:40.2]}
30... Qe7 {[%clk 0:01:19]} 31. Qb8 {[%clk 0:00:36.8]} 31... Qd7 {[%clk
0:01:16.3]} 32. Bxc3 {[%clk 0:00:25.3]} 32... bxc3 {[%clk 0:01:14.1]} 33. Qb3
{[%clk 0:00:24.9]} 33... Qd5+ {[%clk 0:01:07.4]} 34. Qxd5 {[%clk 0:00:24.4]}
34... exd5 {[%clk 0:01:08.3]} 35. Kf1 {[%clk 0:00:24.6]} 35... Bc5 {[%clk
0:01:06.2]} 36. Nc2 {[%clk 0:00:24.6]} 36... f5 {[%clk 0:01:02.6]} 37. Ke2
{[%clk 0:00:24.7]} 37... Bb6 {[%clk 0:01:00.6]} 38. Kd3 {[%clk 0:00:24.1]} 38...
Ba5 {[%clk 0:00:58.6]} 39. Nd4 {[%clk 0:00:23.9]} 39... g6 {[%clk 0:00:57.4]}
40. Nc6 {[%clk 0:00:23.6]} 40... Bb6 {[%clk 0:00:54.1]} 41. Ne7+ {[%clk
0:00:22.5]} 41... Kf7 {[%clk 0:00:51.6]} 42. Nxd5 {[%clk 0:00:22.8]} 42... Ba5
{[%clk 0:00:50.8]} 43. Nxc3 {[%clk 0:00:23.1]} 43... Ke6 {[%clk 0:00:49.9]} 44.
Ne2 {[%clk 0:00:23.2]} 44... g5 {[%clk 0:00:48.2]} 45. hxg5 {[%clk 0:00:22.6]}
45... hxg5 {[%clk 0:00:48.3]} 46. Nd4+ {[%clk 0:00:22.7]} 46... Kf6 {[%clk
0:00:46.1]} 47. e4 {[%clk 0:00:23.1]} 47... fxe4+ {[%clk 0:00:41.8]} 48. Kxe4
{[%clk 0:00:24]} 48... Be1 {[%clk 0:00:40.1]} 49. Kf3 {[%clk 0:00:24.2]} 49...
Ke5 {[%clk 0:00:37.9]} 50. Nc2 {[%clk 0:00:20.7]} 50... Bd2 {[%clk 0:00:36]} 51.
Kg4 {[%clk 0:00:20.6]} 51... Kf6 {[%clk 0:00:33.3]} 52. f3 {[%clk 0:00:20.8]}
52... Bc1 {[%clk 0:00:32.6]} 53. Nd4 {[%clk 0:00:20.8]} 53... Bd2 {[%clk
0:00:31.1]} 54. Ne2 {[%clk 0:00:20.7]} 54... Kg6 {[%clk 0:00:30]} 55. Nd4 {[%clk
0:00:20.9]} 55... Bc1 {[%clk 0:00:29.8]} 56. Nc6 {[%clk 0:00:21]} 56... Bd2
{[%clk 0:00:29]} 57. Ne5+ {[%clk 0:00:21]} 57... Kf6 {[%clk 0:00:28.6]} 58. Nd3
{[%clk 0:00:21.4]} 58... Kg6 {[%clk 0:00:27.8]} 59. Nc5 {[%clk 0:00:21.6]} 59...
Bc1 {[%clk 0:00:27.7]} 60. Ne4 {[%clk 0:00:21.9]} 60... Be3 {[%clk 0:00:26.5]}
61. Nd6 {[%clk 0:00:21]} 61... Bc1 {[%clk 0:00:26.1]} 62. Nc4 {[%clk 0:00:21.1]}
62... Kf6 {[%clk 0:00:23.6]} 63. Nb6 {[%clk 0:00:20.5]} 63... Kg6 {[%clk
0:00:23.3]} 64. Nd7 {[%clk 0:00:20.6]} 64... Bd2 {[%clk 0:00:22.6]} 65. Nf8+
{[%clk 0:00:20.6]} 65... Kf7 {[%clk 0:00:22]} 66. Nh7 {[%clk 0:00:20.5]} 66...
Kg6 {[%clk 0:00:21.8]} 67. Nf8+ {[%clk 0:00:20.8]} 67... Kf7 {[%clk 0:00:21.8]}
68. Nd7 {[%clk 0:00:21.1]} 68... Ke6 {[%clk 0:00:21.5]} 69. Nb6 {[%clk
0:00:20.6]} 69... Kf7 {[%clk 0:00:20.4]} 70. Kf5 {[%clk 0:00:20.6]} 70... Kg7
{[%clk 0:00:19.6]} 71. g4 {[%clk 0:00:20.9]} 71... Bc1 {[%clk 0:00:17.2]} 72.
Nd5 {[%clk 0:00:21.8]} 72... Kf7 {[%clk 0:00:15.7]} 73. Nc3 {[%clk 0:00:21.6]}
73... Bd2 {[%clk 0:00:14.9]} 74. Ne4 {[%clk 0:00:21.9]} 74... Bc1 {[%clk
0:00:14.4]} 75. Nxg5+ {[%clk 0:00:22.5]} 1-0

[Event "*** Titled Tuesday Blitz"]
[Site "Chess.com"]
[Date "2020.05.19"]
[Round "6"]
[White "chessplayer9919"]
[Black "velemajstor767276"]
[Result "1/2-1/2"]
[WhiteElo "2500"]
[BlackElo "2631"]
[TimeControl "180+1"]
[EndTime "13:10:45 PDT"]
[Termination "Game drawn by repetition"]

1. d4 {[%clk 0:03:00]} 1... Nf6 {[%clk 0:02:59]} 2. c4 {[%clk 0:02:58.5]} 2...
e6 {[%clk 0:02:59.4]} 3. Nf3 {[%clk 0:02:57.7]} 3... Bb4+ {[%clk 0:02:59.4]} 4.
Bd2 {[%clk 0:02:57.8]} 4... a5 {[%clk 0:02:59]} 5. g3 {[%clk 0:02:56.8]} 5... b6
{[%clk 0:02:57.5]} 6. Bg2 {[%clk 0:02:56.7]} 6... Bb7 {[%clk 0:02:57.9]} 7. O-O
{[%clk 0:02:57.1]} 7... O-O {[%clk 0:02:58]} 8. a3 {[%clk 0:02:57.2]} 8... Bxd2
{[%clk 0:02:55.5]} 9. Nbxd2 {[%clk 0:02:58.1]} 9... a4 {[%clk 0:02:43.7]} 10.
Qc2 {[%clk 0:02:56.1]} 10... d6 {[%clk 0:02:42.3]} 11. e4 {[%clk 0:02:55.2]}
11... Nbd7 {[%clk 0:02:39.8]} 12. Rfe1 {[%clk 0:02:52.9]} 12... e5 {[%clk
0:02:38.7]} 13. Rad1 {[%clk 0:02:14.6]} 13... Qe7 {[%clk 0:02:35.3]} 14. Nf1
{[%clk 0:02:02.2]} 14... g6 {[%clk 0:02:20.6]} 15. N1d2 {[%clk 0:01:26.6]} 15...
Rfe8 {[%clk 0:01:53.8]} 16. d5 {[%clk 0:01:25.8]} 16... Nc5 {[%clk 0:01:52.5]}
17. Nb1 {[%clk 0:01:25.9]} 17... Bc8 {[%clk 0:01:47.4]} 18. Nc3 {[%clk
0:01:24.9]} 18... Bg4 {[%clk 0:01:45.8]} 19. Nd2 {[%clk 0:01:24.8]} 19... Bxd1
{[%clk 0:01:45.1]} 20. Rxd1 {[%clk 0:01:20.5]} 20... Rf8 {[%clk 0:01:41.4]} 21.
Nf1 {[%clk 0:01:17]} 21... Nh5 {[%clk 0:01:39.2]} 22. Ne3 {[%clk 0:01:16.2]}
22... Ng7 {[%clk 0:01:39.3]} 23. Bh3 {[%clk 0:00:56]} 23... f5 {[%clk
0:01:36.2]} 24. exf5 {[%clk 0:00:55.3]} 24... gxf5 {[%clk 0:01:37.1]} 25. Nxf5
{[%clk 0:00:55.8]} 25... Nxf5 {[%clk 0:01:33.9]} 26. Bxf5 {[%clk 0:00:56.7]}
26... Rf6 {[%clk 0:01:29.8]} 27. g4 {[%clk 0:00:52.1]} 27... Kh8 {[%clk
0:01:24.4]} 28. Kh1 {[%clk 0:00:48.7]} 28... Rf7 {[%clk 0:01:19.7]} 29. f3
{[%clk 0:00:44.1]} 29... Qh4 {[%clk 0:01:14.1]} 30. Qg2 {[%clk 0:00:39.3]} 30...
Rg8 {[%clk 0:01:12.8]} 31. Qg3 {[%clk 0:00:34.4]} 31... Qe7 {[%clk 0:01:09.2]}
32. Qf2 {[%clk 0:00:30.1]} 32... Nb3 {[%clk 0:01:02]} 33. Be6 {[%clk 0:00:23.9]}
33... Rgf8 {[%clk 0:00:59.3]} 34. Bxf7 {[%clk 0:00:23.6]} 34... Qxf7 {[%clk
0:01:00.2]} 35. Kg2 {[%clk 0:00:19.5]} 35... Nd4 {[%clk 0:00:59.7]} 36. Rxd4
{[%clk 0:00:15.9]} 36... exd4 {[%clk 0:00:59.4]} 37. Qxd4+ {[%clk 0:00:16.8]}
37... Qg7 {[%clk 0:00:58.8]} 38. Qxg7+ {[%clk 0:00:14.3]} 38... Kxg7 {[%clk
0:00:59.7]} 39. Nxa4 {[%clk 0:00:15]} 39... Rf4 {[%clk 0:00:57.5]} 40. b3 {[%clk
0:00:15.5]} 40... Rd4 {[%clk 0:00:56.9]} 41. Nc3 {[%clk 0:00:12.7]} 41... Rd3
{[%clk 0:00:56.6]} 42. Nb5 {[%clk 0:00:12.1]} 42... Rxb3 {[%clk 0:00:55.1]} 43.
Nxc7 {[%clk 0:00:12.7]} 43... Rc3 {[%clk 0:00:49.9]} 44. Ne8+ {[%clk 0:00:10.8]}
44... Kg6 {[%clk 0:00:40.4]} 45. Nxd6 {[%clk 0:00:10.5]} 45... Rxa3 {[%clk
0:00:40.9]} 46. Kg3 {[%clk 0:00:05.9]} 46... Kf6 {[%clk 0:00:31.8]} 47. c5
{[%clk 0:00:06]} 47... bxc5 {[%clk 0:00:21.8]} 48. Ne4+ {[%clk 0:00:06.3]} 48...
Ke5 {[%clk 0:00:21.8]} 49. Nxc5 {[%clk 0:00:07.2]} 49... Kxd5 {[%clk 0:00:21.8]}
50. Ne4 {[%clk 0:00:08.1]} 50... Ke5 {[%clk 0:00:21.5]} 51. h4 {[%clk
0:00:07.3]} 51... h6 {[%clk 0:00:20.1]} 52. Nd2 {[%clk 0:00:05.8]} 52... Rc3
{[%clk 0:00:18.6]} 53. Ne4 {[%clk 0:00:05.7]} 53... Ra3 {[%clk 0:00:16]} 54. Nf2
{[%clk 0:00:04.3]} 54... Kd4 {[%clk 0:00:15.4]} 55. Ne4 {[%clk 0:00:04.8]} 55...
Ke3 {[%clk 0:00:15]} 56. Nd6 {[%clk 0:00:03.6]} 56... Ke2 {[%clk 0:00:14]} 57.
Nf5 {[%clk 0:00:03.4]} 57... Rxf3+ {[%clk 0:00:13.7]} 58. Kg2 {[%clk 0:00:04.1]}
58... Rf2+ {[%clk 0:00:13]} 59. Kg3 {[%clk 0:00:04.3]} 59... Rf3+ {[%clk
0:00:08.3]} 60. Kg2 {[%clk 0:00:04.3]} 60... Rf2+ {[%clk 0:00:07]} 61. Kh3
{[%clk 0:00:04.6]} 61... h5 {[%clk 0:00:05.4]} 62. Ng3+ {[%clk 0:00:03.5]} 62...
Kf3 {[%clk 0:00:04.8]} 63. Nxh5 {[%clk 0:00:03.6]} 63... Rg2 {[%clk 0:00:04.1]}
64. g5 {[%clk 0:00:02.8]} 64... Rg1 {[%clk 0:00:03.4]} 65. Kh2 {[%clk
0:00:02.9]} 65... Rg2+ {[%clk 0:00:03.8]} 66. Kh3 {[%clk 0:00:03.3]} 66... Rg1
{[%clk 0:00:03.6]} 67. Kh2 {[%clk 0:00:03.8]} 67... Rg2+ {[%clk 0:00:03.4]} 68.
Kh3 {[%clk 0:00:04.4]} 1/2-1/2

[Event "*** Titled Tuesday Blitz"]
[Site "Chess.com"]
[Date "2020.05.19"]
[Round "6"]
[White "Lion-Al-Messi"]
[Black "zaur-mammadov"]
[Result "1/2-1/2"]
[WhiteElo "2331"]
[BlackElo "2547"]
[TimeControl "180+1"]
[EndTime "13:10:47 PDT"]
[Termination "Game drawn by repetition"]

1. e4 {[%clk 0:03:00.9]} 1... e6 {[%clk 0:02:57.6]} 2. d4 {[%clk 0:02:59.5]}
2... d5 {[%clk 0:02:58.1]} 3. exd5 {[%clk 0:03:00.4]} 3... exd5 {[%clk
0:02:57.9]} 4. Bd3 {[%clk 0:03:00.2]} 4... Nc6 {[%clk 0:02:58.2]} 5. c3 {[%clk
0:02:59.8]} 5... Bd6 {[%clk 0:02:58.8]} 6. Nf3 {[%clk 0:02:59.4]} 6... Bg4
{[%clk 0:02:59.2]} 7. O-O {[%clk 0:02:59.1]} 7... Nge7 {[%clk 0:02:59.8]} 8.
Nbd2 {[%clk 0:02:59.2]} 8... Qd7 {[%clk 0:02:59.9]} 9. b4 {[%clk 0:02:58.6]}
9... O-O {[%clk 0:02:58.3]} 10. a4 {[%clk 0:02:58.8]} 10... Rae8 {[%clk
0:02:46.4]} 11. b5 {[%clk 0:02:59.1]} 11... Nd8 {[%clk 0:02:45.2]} 12. Ba3
{[%clk 0:02:59.3]} 12... Ne6 {[%clk 0:02:42.6]} 13. Bxd6 {[%clk 0:02:55.8]}
13... Qxd6 {[%clk 0:02:43.5]} 14. h3 {[%clk 0:02:54.8]} 14... Bh5 {[%clk
0:02:43.1]} 15. g4 {[%clk 0:02:50.8]} 15... Bg6 {[%clk 0:02:42.6]} 16. Ne5
{[%clk 0:02:51]} 16... Nf4 {[%clk 0:02:40.2]} 17. Qf3 {[%clk 0:02:46]} 17...
Nxd3 {[%clk 0:02:28.2]} 18. Nxd3 {[%clk 0:02:46.1]} 18... Bxd3 {[%clk
0:02:28.9]} 19. Qxd3 {[%clk 0:02:45.8]} 19... Ng6 {[%clk 0:02:29.8]} 20. Rae1
{[%clk 0:02:41.1]} 20... Nf4 {[%clk 0:02:21]} 21. Qf3 {[%clk 0:02:41.1]} 21...
Qh6 {[%clk 0:02:21.5]} 22. Kh2 {[%clk 0:02:37.5]} 22... Nxh3 {[%clk 0:02:16.7]}
23. Qxh3 {[%clk 0:02:37.1]} 23... Qxd2 {[%clk 0:02:16.7]} 24. Rxe8 {[%clk
0:02:27.4]} 24... Rxe8 {[%clk 0:02:15.7]} 25. Kg2 {[%clk 0:02:27.1]} 25... h6
{[%clk 0:02:14.5]} 26. Qf3 {[%clk 0:02:26.3]} 26... c6 {[%clk 0:02:13.1]} 27.
bxc6 {[%clk 0:02:25.6]} 27... bxc6 {[%clk 0:02:14]} 28. Rb1 {[%clk 0:02:25.3]}
28... a5 {[%clk 0:01:39.5]} 29. Rb7 {[%clk 0:02:23.6]} 29... Rf8 {[%clk
0:01:39.1]} 30. Ra7 {[%clk 0:02:19.3]} 30... Qb2 {[%clk 0:01:25.9]} 31. Rxa5
{[%clk 0:02:17.8]} 31... Qb6 {[%clk 0:01:26.3]} 32. Rc5 {[%clk 0:02:18]} 32...
Re8 {[%clk 0:01:23.2]} 33. a5 {[%clk 0:02:17.3]} 33... Qa6 {[%clk 0:01:23.6]}
34. c4 {[%clk 0:02:13.8]} 34... Re1 {[%clk 0:01:07]} 35. Kh2 {[%clk 0:02:06.8]}
35... Re6 {[%clk 0:01:02.8]} 36. cxd5 {[%clk 0:02:01.8]} 36... Rf6 {[%clk
0:01:03.1]} 37. Qe3 {[%clk 0:01:17]} 37... Qf1 {[%clk 0:00:49.4]} 38. Rc2 {[%clk
0:01:16.9]} 38... cxd5 {[%clk 0:00:48.8]} 39. Re2 {[%clk 0:01:11.7]} 39... g6
{[%clk 0:00:39.4]} 40. Qe8+ {[%clk 0:01:01.8]} 40... Kh7 {[%clk 0:00:39.1]} 41.
Qe3 {[%clk 0:00:58.3]} 41... g5 {[%clk 0:00:25.5]} 42. Ra2 {[%clk 0:00:35.5]}
42... Rf4 {[%clk 0:00:20.5]} 43. Qe2 {[%clk 0:00:24.7]} 43... Qb1 {[%clk
0:00:17.3]} 44. Qc2+ {[%clk 0:00:24.3]} 44... Qxc2 {[%clk 0:00:16.8]} 45. Rxc2
{[%clk 0:00:25.2]} 45... Rxd4 {[%clk 0:00:16.5]} 46. Ra2 {[%clk 0:00:25.5]}
46... Rc4 {[%clk 0:00:17]} 47. a6 {[%clk 0:00:24.5]} 47... Rc8 {[%clk
0:00:17.6]} 48. a7 {[%clk 0:00:22.8]} 48... Ra8 {[%clk 0:00:18.3]} 49. Ra6
{[%clk 0:00:22.3]} 49... Kg7 {[%clk 0:00:17.4]} 50. Kg3 {[%clk 0:00:21.8]} 50...
d4 {[%clk 0:00:17.4]} 51. Kf3 {[%clk 0:00:21.9]} 51... f5 {[%clk 0:00:16.1]} 52.
gxf5 {[%clk 0:00:22.1]} 52... h5 {[%clk 0:00:17]} 53. Ke4 {[%clk 0:00:21.4]}
53... h4 {[%clk 0:00:16.9]} 54. Kxd4 {[%clk 0:00:19.7]} 54... h3 {[%clk
0:00:17.2]} 55. Rg6+ {[%clk 0:00:19.8]} 55... Kh7 {[%clk 0:00:17.1]} 56. Rxg5
{[%clk 0:00:20.7]} 56... Rxa7 {[%clk 0:00:17.4]} 57. Rh5+ {[%clk 0:00:21]} 57...
Kg7 {[%clk 0:00:17.9]} 58. Rxh3 {[%clk 0:00:21.1]} 58... Kf6 {[%clk 0:00:18.4]}
59. Rf3 {[%clk 0:00:18.3]} 59... Ra4+ {[%clk 0:00:18.6]} 60. Kd5 {[%clk
0:00:15.9]} 60... Ra5+ {[%clk 0:00:18.5]} 61. Ke4 {[%clk 0:00:16.1]} 61... Ra4+
{[%clk 0:00:19]} 62. Kd5 {[%clk 0:00:15.2]} 62... Ra5+ {[%clk 0:00:18.9]} 63.
Ke4 {[%clk 0:00:14.4]} 63... Ra4+ {[%clk 0:00:19.4]} 64. Ke3 {[%clk 0:00:14.7]}
64... Ra3+ {[%clk 0:00:19.1]} 65. Kf4 {[%clk 0:00:14.8]} 65... Ra4+ {[%clk
0:00:19.4]} 66. Kg3 {[%clk 0:00:14.6]} 66... Rb4 {[%clk 0:00:19.9]} 67. Kg2
{[%clk 0:00:13.1]} 67... Rg4+ {[%clk 0:00:19.3]} 68. Kh3 {[%clk 0:00:12.8]}
68... Ra4 {[%clk 0:00:20.2]} 69. Kg3 {[%clk 0:00:12.9]} 69... Rb4 {[%clk
0:00:20.4]} 70. Rf4 {[%clk 0:00:13]} 70... Rb3+ {[%clk 0:00:20.5]} 71. f3 {[%clk
0:00:12.6]} 71... Rb1 {[%clk 0:00:20.9]} 72. Kf2 {[%clk 0:00:10.8]} 72... Ke5
{[%clk 0:00:20.4]} 73. Ra4 {[%clk 0:00:04.1]} 73... Kxf5 {[%clk 0:00:20.6]} 74.
Kg3 {[%clk 0:00:03.9]} 74... Rg1+ {[%clk 0:00:19.5]} 75. Kf2 {[%clk 0:00:04.2]}
75... Rb1 {[%clk 0:00:20.1]} 76. Kg3 {[%clk 0:00:04.5]} 76... Rg1+ {[%clk
0:00:19.4]} 77. Kf2 {[%clk 0:00:04.6]} 77... Rb1 {[%clk 0:00:19.8]} 1/2-1/2